fUSD/lending_fUSD_20250616
["ID","MTS","AMOUNT","RATE_DAILY","PERIOD"]
[366104736,1750065046068,-492.29551694,0.00016438,2]
[366104737,1750065046077,-913.25,0.00016438,2]
[366104738,1750065046086,-490.0,0.00016438,2]
[366104739,1750065046096,-490.0,0.00016438,2]
[366104740,1750065046105,-490.0,0.00016438,2]
[366104741,1750065046114,-16919.69,0.00016438,2]
[366104742,1750065046123,-661.05,0.00016438,2]
[366104743,1750065046133,-8001.05,0.00016438,2]
[366104744,1750065046143,-544.47951432,0.00016438,2]
[366104745,1750065046153,-2322.48,0.00016438,2]
[366104746,1750065046163,-1735.92,0.00016438,2]
[366104747,1750065046175,-490.0,0.00016438,2]
[366104748,1750065046185,-1802.57,0.00016438,2]
[366104749,1750065046194,-490.0,0.00016438,2]
[366104750,1750065046204,-7391.8,0.00016438,2]
[366104751,1750065046213,-1220.5,0.00016438,2]
[366104752,1750065046224,-1005.27,0.00016438,2]
[366104753,1750065046235,-851.52,0.00016438,2]
[366104754,1750065046248,-6250.97,0.00016438,2]
[366104755,1750065046259,-3563.65,0.00016438,2]
[366104756,1750065046269,-1070.9,0.00016438,2]
[366104757,1750065046279,-490.0,0.00016438,2]
[366104758,1750065046288,-935.26,0.00016438,2]
[366104759,1750065046298,-881.13,0.00016438,2]
[366104760,1750065046308,-4890.65,0.00016438,2]
[366104761,1750065046318,-1544.95,0.00016438,2]
[366104762,1750065046330,-539.36,0.00016438,2]
[366104763,1750065046341,-1375.97,0.00016438,2]
[366104764,1750065046351,-600.37,0.00016438,2]
[366104765,1750065046361,-490.0,0.00016438,2]
[366104766,1750065046371,-1511.14,0.00016438,2]
[366104767,1750065046380,-490.0,0.00016438,2]
[366104768,1750065046390,-490.0,0.00016438,2]
[366104769,1750065046400,-830.48,0.00016438,2]
[366104770,1750065046410,-1106.87,0.00016438,2]
[366104771,1750065046419,-14580.57,0.00016438,2]
[366104772,1750065046429,-526.93,0.00016438,2]
[366104773,1750065046439,-490.0,0.00016438,2]
[366104774,1750065046448,-728.53,0.00016438,2]
[366104775,1750065046457,-490.0,0.00016438,2]
[366104776,1750065046466,-490.0,0.00016438,2]
[366104777,1750065046476,-1367.4,0.00016438,2]
[366104778,1750065046485,-2975.37,0.00016438,2]
[366104779,1750065046494,-490.0,0.00016438,2]
[366104780,1750065046504,-1035.27,0.00016438,2]
[366104781,1750065046515,-490.0,0.00016438,2]
[366104782,1750065046524,-3975.41,0.00016438,2]
[366104783,1750065046534,-1269.62,0.00016438,2]
[366104784,1750065046544,-1751.95,0.00016438,2]
[366104785,1750065046554,-493.69,0.00016438,2]
[366104786,1750065046563,-490.0,0.00016438,2]
[366104787,1750065046572,-3048.78,0.00016438,2]
[366104788,1750065046581,-2132.19,0.00016438,2]
[366104789,1750065046591,-748.98,0.00016438,2]
[366104790,1750065046600,-1215.81,0.00016438,2]
[366104791,1750065046610,-490.0,0.00016438,2]
[366104792,1750065046619,-964.97,0.00016438,2]
[366104793,1750065046629,-3132.24,0.00016438,2]
[366104794,1750065046638,-1231.87,0.00016438,2]
[366104795,1750065046649,-1409.52,0.00016438,2]
[366104796,1750065046658,-1499.61,0.00016438,2]
[366104797,1750065046667,-490.0,0.00016438,2]
[366104798,1750065046677,-1413.34,0.00016438,2]
[366104799,1750065046690,-8690.06,0.00016438,2]
[366104800,1750065046700,-490.0,0.00016438,2]
[366104801,1750065046709,-4072.35,0.00016438,2]
[366104802,1750065046719,-2200.89,0.00016438,2]
[366104803,1750065046729,-490.0,0.00016438,2]
[366104804,1750065046739,-7709.53,0.00016438,2]
[366104805,1750065046748,-500.0,0.00016438,2]
[366104806,1750065046759,-500.0,0.00016438,2]
[366104807,1750065046769,-500.0,0.00016438,2]
[366104808,1750065046779,-490.0,0.00016438,2]
[366104809,1750065046789,-490.0,0.00016438,2]
[366104810,1750065046800,-495.66,0.00016438,2]
[366104811,1750065046810,-490.0,0.00016438,2]
[366104812,1750065046820,-1979.05,0.00016438,2]
[366104813,1750065046830,-688.13,0.00016438,2]
[366104814,1750065046840,-2409.22,0.00016438,2]
[366104815,1750065046849,-2408.74,0.00016438,2]
[366104816,1750065046859,-500.0,0.00016438,2]
[366104818,1750065046869,-500.0,0.00016438,2]
[366104820,1750065046878,-490.0,0.00016438,2]
[366104821,1750065046888,-515.64,0.00016438,2]
[366104822,1750065046898,-490.0,0.00016438,2]
[366104823,1750065046907,-490.0,0.00016438,2]
[366104824,1750065046916,-918.64,0.00016438,2]
[366104825,1750065046926,-516.75,0.00016438,2]
[366104826,1750065046935,-2312.55,0.00016438,2]
[366104827,1750065046945,-1366.75,0.00016438,2]
[366104828,1750065046955,-737.14,0.00016438,2]
[366104829,1750065046964,-4029.25,0.00016438,2]
[366104830,1750065046974,-2476.63,0.00016438,2]
[366104831,1750065046983,-1200.81,0.00016438,2]
[366104832,1750065046992,-490.0,0.00016438,2]
[366104833,1750065047002,-899.46,0.00016438,2]
[366104834,1750065047012,-1566.38,0.00016438,2]
[366104835,1750065047022,-1731.39,0.00016438,2]
[366104836,1750065047032,-3961.87,0.00016438,2]
[366104837,1750065047041,-1570.19,0.00016438,2]
[366104838,1750065047051,-1614.75,0.00016438,2]
[366104839,1750065047060,-1980.67,0.00016438,2]
[366104840,1750065047070,-5598.92,0.00016438,2]
[366104841,1750065047079,-839.57,0.00016438,2]
[366104842,1750065047088,-1116.86,0.00016438,2]
[366104843,1750065047097,-490.0,0.00016438,2]
[366104844,1750065047107,-4364.95,0.00016438,2]
[366104845,1750065047116,-490.0,0.00016438,2]
[366104846,1750065047126,-490.0,0.00016438,2]
[366104847,1750065047135,-1032.01,0.00016438,2]
[366104848,1750065047144,-490.0,0.00016438,2]
[366104849,1750065047154,-4705.42,0.00016438,2]
[366104850,1750065047163,-490.0,0.00016438,2]
[366104851,1750065047173,-490.0,0.00016438,2]
[366104852,1750065047183,-490.0,0.00016438,2]
[366104853,1750065047192,-1145.47,0.00016438,2]
[366104854,1750065047202,-900.54,0.00016438,2]
[366104855,1750065047211,-705.49,0.00016438,2]
[366104856,1750065047222,-2143.93,0.00016438,2]
[366104857,1750065047231,-490.0,0.00016438,2]
[366104858,1750065047241,-1641.74,0.00016438,2]
[366104859,1750065047250,-1333.42,0.00016438,2]
[366104860,1750065047265,-2180.53,0.00016438,2]
[366104861,1750065047275,-3294.06,0.00016438,2]
[366104862,1750065047284,-926.29,0.00016438,2]
[366104863,1750065047296,-784.17,0.00016438,2]
[366104864,1750065047306,-490.0,0.00016438,2]
[366104865,1750065047315,-1210.71,0.00016438,2]
[366104866,1750065047326,-6040.02,0.00016438,2]
[366104867,1750065047336,-490.0,0.00016438,2]
[366104868,1750065047346,-1599.47,0.00016438,2]
[366104869,1750065047356,-2434.25,0.00016438,2]
[366104870,1750065047365,-1069.28,0.00016438,2]
[366104871,1750065047375,-1194.1,0.00016438,2]
[366104872,1750065047385,-951.76,0.00016438,2]
[366104873,1750065047394,-1739.25,0.00016438,2]
[366104874,1750065047404,-490.0,0.00016438,2]
[366104875,1750065047413,-1678.99,0.00016438,2]
[366104876,1750065047423,-2817.01,0.00016438,2]
[366104877,1750065047433,-1164.91,0.00016438,2]
[366104878,1750065047442,-490.0,0.00016438,2]
[366104879,1750065047452,-490.0,0.00016438,2]
[366104880,1750065047461,-622.33,0.00016438,2]
[366104881,1750065047471,-496.73142014,0.00016438,2]
[366104882,1750065047481,-1762.23,0.00016438,2]
[366104883,1750065047490,-736.17,0.00016438,2]
[366104884,1750065047500,-764.81,0.00016438,2]
[366104885,1750065047509,-1055.11,0.00016438,2]
[366104886,1750065047519,-1033.88,0.00016438,2]
[366104887,1750065047529,-490.0,0.00016438,2]
[366104888,1750065047538,-875.58,0.00016438,2]
[366104889,1750065047549,-490.0,0.00016438,2]
[366104890,1750065047559,-490.0,0.00016438,2]
[366104891,1750065047568,-1742.77,0.00016438,2]
[366104892,1750065047578,-490.0,0.00016438,2]
[366104893,1750065047587,-2157.27,0.00016438,2]
[366104894,1750065047597,-6892.85,0.00016438,2]
[366104895,1750065047606,-490.0,0.00016438,2]
[366104896,1750065047616,-490.0,0.00016438,2]
[366104897,1750065047625,-1585.02,0.00016438,2]
[366104898,1750065047634,-490.0,0.00016438,2]
[366104899,1750065047643,-3303.0,0.00016438,2]
[366104900,1750065047652,-938.66,0.00016438,2]
[366104901,1750065047662,-792.7,0.00016438,2]
[366104902,1750065047671,-2370.61,0.00016438,2]
[366104903,1750065047680,-2038.8,0.00016438,2]
[366104904,1750065047689,-595.11,0.00016438,2]
[366104905,1750065047699,-490.0,0.00016438,2]
[366104906,1750065047708,-490.0,0.00016438,2]
[366104907,1750065047718,-490.0,0.00016438,2]
[366104908,1750065047727,-1158.32,0.00016438,2]
[366104909,1750065047737,-703.22,0.00016438,2]
[366104910,1750065047747,-680.94,0.00016438,2]
[366104911,1750065047758,-765.75,0.00016438,2]
[366104912,1750065047767,-953.85,0.00016438,2]
[366104913,1750065047776,-1204.48,0.00016438,2]
[366104914,1750065047786,-490.0,0.00016438,2]
[366104915,1750065047795,-490.0,0.00016438,2]
[366104916,1750065047805,-490.0,0.00016438,2]
[366104917,1750065047814,-1456.49,0.00016438,2]
[366104918,1750065047823,-490.0,0.00016438,2]
[366104919,1750065047832,-785.79,0.00016438,2]
[366104920,1750065047841,-731.74,0.00016438,2]
[366104921,1750065047850,-490.0,0.00016438,2]
[366104922,1750065047861,-2794.73,0.00016438,2]
[366104923,1750065047870,-1493.83,0.00016438,2]
[366104924,1750065047880,-490.0,0.00016438,2]
[366104925,1750065047890,-1105.6,0.00016438,2]
[366104926,1750065047899,-1253.69,0.00016438,2]
[366104927,1750065047908,-713.6,0.00016438,2]
[366104928,1750065047917,-1039.13,0.00016438,2]
[366104929,1750065047927,-9027.69,0.00016438,2]
[366104930,1750065047937,-1281.08,0.00016438,2]
[366104931,1750065047946,-841.49,0.00016438,2]
[366104932,1750065047955,-490.0,0.00016438,2]
[366104933,1750065047965,-493.6,0.00016438,2]
[366104934,1750065047976,-3599.44,0.00016438,2]
[366104935,1750065047986,-955.56,0.00016438,2]
[366104936,1750065047995,-490.0,0.00016438,2]
[366104937,1750065048004,-837.73,0.00016438,2]
[366104938,1750065048015,-646.75,0.00016438,2]
[366104939,1750065048025,-585.6,0.00016438,2]
[366104940,1750065048034,-1182.86,0.00016438,2]
[366104941,1750065048044,-1155.55,0.00016438,2]
[366104942,1750065048054,-490.0,0.00016438,2]
[366104943,1750065048063,-1020.12,0.00016438,2]
[366104944,1750065048073,-490.0,0.00016438,2]
[366104945,1750065048082,-500.0,0.00016438,2]
[366104946,1750065048091,-500.0,0.00016438,2]
[366104947,1750065048101,-1134.4,0.00016438,2]
[366104948,1750065048111,-500.0,0.00016438,2]
[366104949,1750065048120,-1447.26,0.00016438,2]
[366104950,1750065048130,-3263.3,0.00016438,2]
[366104951,1750065048140,-20473.2,0.00016438,2]
[366104952,1750065048149,-493.9,0.00016438,2]
[366104953,1750065048159,-523.79,0.00016438,2]
[366104954,1750065048169,-1018.64,0.00016438,2]
[366104955,1750065048179,-1216.36,0.00016438,2]
[366104956,1750065048189,-16786.68,0.00016438,2]
[366104957,1750065048199,-9595.54,0.00016438,2]
[366104958,1750065048209,-3188.65,0.00016438,2]
[366104959,1750065048221,-586.76,0.00016438,2]
[366104960,1750065048233,-988.28,0.00016438,2]
[366104961,1750065048243,-490.0,0.00016438,2]
[366104962,1750065048257,-1301.54,0.00016438,2]
[366104963,1750065048269,-1084.82,0.00016438,2]
[366104964,1750065048279,-166.61411718,0.00016438,2]
[366104965,1750065051519,-271.40654555,0.00016438,2]
[366104966,1750065051592,-860.99933727,0.00016438,2]
[366104967,1750065051602,-517.57,0.00016438,2]
[366104968,1750065051612,-806.19566273,0.00016438,2]
[366104969,1750065051684,-94.44433727,0.00016438,2]
[366104970,1750065051693,-150.0,0.00016438,2]
[366104971,1750065051702,-150.0,0.00016439,2]
[366104972,1750065051712,-150.0,0.00016441,2]
[366104973,1750065051721,-675.804781,0.00016448,2]
[366104974,1750065052343,-490.0,0.00016438,2]
[366104975,1750065052353,-470.0,0.00016448,2]
[366104976,1750065052367,-319.62366024,0.00016448,2]
[366104977,1750065052376,-152.35108738,0.0001645,2]
[366104978,1750065052387,-150.0,0.00016453,2]
[366104979,1750065052396,-150.0,0.00016455,2]
[366104980,1750065052406,-150.0,0.00016457,2]
[366104981,1750065052415,-150.0,0.00016458,2]
[366104982,1750065052425,-150.0,0.00016458,2]
[366104983,1750065052434,-150.0,0.00016459,2]
[366104984,1750065052443,-150.0,0.00016461,2]
[366104985,1750065052453,-150.0,0.00016462,2]
[366104986,1750065052462,-150.0,0.00016462,2]
[366104987,1750065052471,-150.0,0.00016469,2]
[366104988,1750065052482,-150.0,0.0001647,2]
[366104989,1750065052491,-150.0,0.00016471,2]
[366104990,1750065052501,-150.0,0.00016472,2]
[366104991,1750065052511,-150.0,0.00016483,2]
[366104992,1750065052520,-150.0,0.00016484,2]
[366104993,1750065052531,-1465.42844124,0.00016484,2]
[366104994,1750065052540,-150.0,0.00016488,2]
[366104995,1750065052549,-150.0,0.00016488,2]
[366104996,1750065052559,-150.0,0.00016496,2]
[366104997,1750065052568,-175.2860828,0.00016498,2]
[366104998,1750065052577,-196.85847366,0.00016498,2]
[366104999,1750065052587,-162.74938912,0.000165,2]
[366105000,1750065052596,-153.0,0.000165,2]
[366105001,1750065052606,-153.0,0.000165,2]
[366105002,1750065052616,-150.0,0.000165,2]
[366105003,1750065052626,-150.0,0.00016502,2]
[366105004,1750065052635,-150.0,0.00016505,2]
[366105005,1750065052645,-150.0,0.00016509,2]
[366105006,1750065052655,-150.0,0.00016509,2]
[366105007,1750065052664,-150.0,0.0001651,2]
[366105008,1750065052673,-150.0,0.0001651,2]
[366105009,1750065052683,-150.0,0.0001651,2]
[366105010,1750065052692,-833.8156298,0.00016517,2]
[366105011,1750065052702,-150.0,0.00016519,2]
[366105012,1750065052711,-1465.42844124,0.00016521,2]
[366105013,1750065052722,-150.0,0.00016523,2]
[366105014,1750065052731,-177.18391154,0.00016525,2]
[366105015,1750065052742,-150.0,0.00016526,2]
[366105016,1750065052751,-150.0,0.00016527,2]
[366105017,1750065052760,-150.0,0.0001653,2]
[366105018,1750065052770,-150.0,0.00016534,2]
[366105019,1750065052781,-150.0,0.00016537,2]
[366105020,1750065052791,-150.0,0.00016539,2]
[366105021,1750065052801,-150.0,0.00016544,2]
[366105022,1750065052810,-150.0,0.00016545,2]
[366105023,1750065052820,-150.0,0.00016554,2]
[366105024,1750065052830,-150.0,0.00016555,2]
[366105025,1750065052840,-1465.42844124,0.00016557,2]
[366105026,1750065052849,-150.0,0.00016559,2]
[366105027,1750065052859,-150.0,0.00016559,2]
[366105028,1750065052868,-150.0,0.00016562,2]
[366105029,1750065052878,-152.35108738,0.00016563,2]
[366105030,1750065052887,-150.0,0.00016564,2]
[366105031,1750065052896,-175.28608274,0.00016565,2]
[366105032,1750065052905,-150.0,0.00016565,2]
[366105033,1750065052915,-558.0,0.00016566,2]
[366105034,1750065052924,-2003.0,0.00016566,2]
[366105035,1750065052933,-150.0,0.00016567,2]
[366105036,1750065052942,-150.0,0.00016568,2]
[366105037,1750065052951,-150.0,0.0001657,2]
[366105038,1750065052961,-150.0,0.00016571,2]
[366105039,1750065052971,-150.0,0.00016571,2]
[366105040,1750065052981,-500.0,0.00016573,2]
[366105041,1750065052990,-504.69929408,0.00016573,2]
[366105042,1750065052999,-500.0,0.00016573,2]
[366105043,1750065053009,-372.48942682,0.00016573,2]
[366105044,1750065053020,-160.06549206,0.00016573,2]
[366105045,1750065053029,-568.53992238,0.00016573,2]
[366105046,1750065053038,-500.0,0.00016573,2]
[366105047,1750065053048,-500.0,0.00016573,2]
[366105048,1750065053057,-500.55203055,0.00016573,2]
[366105049,1750065053067,-500.0,0.00016573,2]
[366105050,1750065053077,-500.0,0.00016573,2]
[366105051,1750065053086,-500.0,0.00016573,2]
[366105052,1750065053095,-502.47503947,0.00016573,2]
[366105053,1750065053105,-500.0,0.00016573,2]
[366105054,1750065053114,-500.0,0.00016573,2]
[366105055,1750065053123,-160.04345336,0.00016573,2]
[366105056,1750065053133,-500.0,0.00016573,2]
[366105057,1750065053143,-500.0,0.00016573,2]
[366105058,1750065053153,-500.0,0.00016573,2]
[366105059,1750065053163,-150.0,0.00016574,2]
[366105060,1750065053173,-150.0,0.00016574,2]
[366105061,1750065053183,-150.0,0.00016575,2]
[366105062,1750065053193,-150.0,0.00016576,2]
[366105063,1750065053202,-150.0,0.00016582,2]
[366105064,1750065053212,-171.3747989,0.00016582,2]
[366105065,1750065053222,-150.0,0.00016583,2]
[366105066,1750065053231,-150.0,0.00016583,2]
[366105067,1750065053241,-151.69550239,0.00016585,2]
[366105068,1750065053366,-150.0,0.00016586,2]
[366105069,1750065053376,-1808.872,0.00016587,2]
[366105070,1750065053385,-155.0,0.00016587,2]
[366105071,1750065053395,-7112.0,0.00016587,2]
[366105072,1750065053404,-4090.0,0.00016587,2]
[366105073,1750065053414,-774.351,0.00016587,2]
[366105074,1750065053423,-887.452,0.00016587,2]
[366105075,1750065053431,-150.0,0.00016589,2]
[366105076,1750065053441,-150.0,0.00016591,2]
[366105077,1750065053450,-1000.0,0.00016592,2]
[366105078,1750065053459,-40183.67213566,0.00016592,2]
[366105079,1750065053468,-693195.66210073,0.00016593,2]
[366105080,1750065053477,-150.0,0.00016593,2]
[366105081,1750065053486,-28118.53533419,0.00016593,2]
[366105082,1750065053503,-10335.13195011,0.00016593,2]
[366105083,1750065053513,-17564.40813982,0.00016593,2]
[366105084,1750065053524,-340.17695208,0.00016593,2]
[366105085,1750065058234,228.0,0.0002465,120]
[366105086,1750065120140,478.69562047,0.0002465,120]
[366105088,1750065149794,165.15,0.00013699,2]
[366105100,1750065290312,331.61,0.00015475,2]
[366105109,1750065359046,1000.0,0.00015463,2]
[366105110,1750065362349,1000.0,0.00015079,2]
[366105131,1750065587509,474.46,0.0001548,2]
[366105142,1750065611738,203.0,0.00014669,2]
[366105145,1750065652492,1082.9639568,0.0001549,2]
[366105147,1750065693662,150.0,0.00015491,2]
[366105156,1750065764256,169.13,0.00015435,2]
[366105158,1750065859567,162.62,0.00015426,2]
[366105161,1750065971806,203.0,0.00014928,2]
[366105342,1750066137551,1213.21,0.00024658,120]
[366105384,1750066175884,1205.22,0.00024658,120]
[366105413,1750066231790,-700.0,0.000159,5]
[366105414,1750066231801,-250.0,0.0001594,2]
[366105415,1750066231811,-167.47,0.0001598,2]
[366105416,1750066231821,-1500.0,0.00016,5]
[366105417,1750066231831,-303.96,0.00016015,2]
[366105418,1750066231841,-601.79836587,0.000161,5]
[366105419,1750066231858,-1598.20163413,0.000161,5]
[366105420,1750066231868,-1200.0,0.00016199,2]
[366105421,1750066231878,-1491.0,0.000162,2]
[366105422,1750066231887,-3000.0,0.000162,5]
[366105423,1750066231897,-203.0,0.00016216,3]
[366105424,1750066231906,-300.0,0.00016244,2]
[366105425,1750066231916,-1079.0,0.00016245,2]
[366105426,1750066231926,-152.0,0.00016266,3]
[366105427,1750066231936,-1514.85305787,0.000163,5]
[366105428,1750066231948,-2285.14694213,0.000163,5]
[366105429,1750066231957,-455.2,0.000163,2]
[366105430,1750066231967,-455.2,0.000163,2]
[366105431,1750066231977,-194.42381595,0.000163,2]
[366105433,1750066232014,-313.79618405,0.000163,2]
[366105434,1750066232024,-156.13648433,0.00016328,2]
[366105458,1750066237477,-51.26351567,0.00016328,2]
[366105459,1750066237487,-300.0,0.00016337,2]
[366105460,1750066237498,-439.62853239,0.00016338,2]
[366105461,1750066237508,-152.35108738,0.00016338,2]
[366105462,1750066237518,-177.18391154,0.00016338,2]
[366105463,1750066237528,-3438.93064859,0.00016338,2]
[366105464,1750066237538,-1000.0,0.00016338,2]
[366105465,1750066237548,-3438.93064859,0.00016375,2]
[366105466,1750066237558,-439.62853237,0.00016389,2]
[366105467,1750066237569,-700.0,0.000164,5]
[366105468,1750066237579,-455.2,0.000164,2]
[366105469,1750066237588,-1972.17414777,0.00016411,2]
[366105472,1750066239718,-1282.0,0.00016411,2]
[366105473,1750066239884,-184.75650082,0.00016411,2]
[366105474,1750066239894,-150.0,0.00016413,2]
[366105475,1750066239904,-550.0,0.00016413,2]
[366105476,1750066239914,-168.0,0.00016414,2]
[366105477,1750066239923,-151.0,0.00016428,2]
[366105478,1750066239933,-773.67531,0.00016431,2]
[366105479,1750066239943,-150.0,0.00016431,2]
[366105480,1750066239954,-2953.140436,0.00016438,2]
[366105481,1750066239964,-2071.94208,0.00016438,2]
[366105482,1750066239974,-490.0,0.00016438,2]
[366105483,1750066239984,-490.0,0.00016438,2]
[366105484,1750066239994,-633.32358558,0.00016438,2]
[366105485,1750066240005,-490.0,0.00016438,2]
[366105486,1750066240014,-627.91,0.00016438,2]
[366105487,1750066240024,-1191.53,0.00016438,2]
[366105488,1750066240034,-490.0,0.00016438,2]
[366105489,1750066240043,-490.0,0.00016438,2]
[366105490,1750066240052,-490.0,0.00016438,2]
[366105491,1750066240062,-490.0,0.00016438,2]
[366105492,1750066240072,-490.0,0.00016438,2]
[366105493,1750066240081,-490.0,0.00016438,2]
[366105494,1750066240091,-250.0,0.00016438,2]
[366105495,1750066240100,-490.0,0.00016438,2]
[366105496,1750066240109,-583.25,0.00016438,2]
[366105497,1750066240119,-490.0,0.00016438,2]
[366105498,1750066240129,-490.0,0.00016438,2]
[366105499,1750066240140,-490.0,0.00016438,2]
[366105500,1750066240150,-490.0,0.00016438,2]
[366105501,1750066240159,-490.0,0.00016438,2]
[366105502,1750066240170,-490.0,0.00016438,2]
[366105503,1750066240180,-490.0,0.00016438,2]
[366105504,1750066240190,-490.0,0.00016438,2]
[366105505,1750066240200,-490.0,0.00016438,2]
[366105506,1750066240210,-500.0,0.00016438,2]
[366105507,1750066240220,-500.0,0.00016438,2]
[366105508,1750066240233,-602.53627856,0.00016438,2]
[366105509,1750066240243,-500.0,0.00016438,2]
[366105510,1750066240254,-490.0,0.00016438,2]
[366105511,1750066240264,-490.0,0.00016438,2]
[366105512,1750066240274,-490.0,0.00016438,2]
[366105513,1750066240284,-490.0,0.00016438,2]
[366105514,1750066240294,-490.0,0.00016438,2]
[366105515,1750066240303,-490.0,0.00016438,2]
[366105516,1750066240312,-570.62,0.00016438,2]
[366105517,1750066240322,-490.0,0.00016438,2]
[366105518,1750066240332,-500.15395209,0.00016438,2]
[366105519,1750066240342,-534.62,0.00016438,2]
[366105520,1750066240351,-557.07575189,0.00016438,2]
[366105521,1750066240361,-515.4,0.00016438,2]
[366105522,1750066240371,-490.0,0.00016438,2]
[366105523,1750066240381,-554.29,0.00016438,2]
[366105524,1750066240391,-490.0,0.00016438,2]
[366105525,1750066240400,-490.0,0.00016438,2]
[366105526,1750066240411,-490.0,0.00016438,2]
[366105527,1750066240420,-490.0,0.00016438,2]
[366105528,1750066240430,-490.0,0.00016438,2]
[366105529,1750066240440,-490.0,0.00016438,2]
[366105530,1750066240450,-490.0,0.00016438,2]
[366105531,1750066240459,-490.0,0.00016438,2]
[366105532,1750066240470,-490.0,0.00016438,2]
[366105533,1750066240480,-490.0,0.00016438,2]
[366105534,1750066240490,-490.0,0.00016438,2]
[366105535,1750066240499,-490.69,0.00016438,2]
[366105536,1750066240510,-490.0,0.00016438,2]
[366105537,1750066240520,-490.0,0.00016438,2]
[366105538,1750066240529,-490.0,0.00016438,2]
[366105539,1750066240539,-490.0,0.00016438,2]
[366105540,1750066240549,-490.0,0.00016438,2]
[366105541,1750066240559,-490.0,0.00016438,2]
[366105542,1750066240570,-552.88,0.00016438,2]
[366105543,1750066240580,-490.0,0.00016438,2]
[366105544,1750066240590,-490.0,0.00016438,2]
[366105545,1750066240600,-490.0,0.00016438,2]
[366105546,1750066240610,-490.0,0.00016438,2]
[366105547,1750066240620,-490.0,0.00016438,2]
[366105548,1750066240630,-490.0,0.00016438,2]
[366105549,1750066240640,-888.42,0.00016438,2]
[366105550,1750066240650,-780.95,0.00016438,2]
[366105551,1750066240660,-490.0,0.00016438,2]
[366105552,1750066240669,-490.0,0.00016438,2]
[366105553,1750066240679,-490.0,0.00016438,2]
[366105554,1750066240691,-806.76,0.00016438,2]
[366105555,1750066240703,-490.0,0.00016438,2]
[366105556,1750066240715,-504.84,0.00016438,2]
[366105557,1750066240725,-490.0,0.00016438,2]
[366105558,1750066240734,-490.0,0.00016438,2]
[366105559,1750066240744,-490.0,0.00016438,2]
[366105560,1750066240754,-490.0,0.00016438,2]
[366105561,1750066240764,-490.0,0.00016438,2]
[366105562,1750066240774,-490.0,0.00016438,2]
[366105563,1750066240783,-542.99,0.00016438,2]
[366105564,1750066240793,-490.0,0.00016438,2]
[366105565,1750066240803,-490.0,0.00016438,2]
[366105566,1750066240814,-609.8,0.00016438,2]
[366105567,1750066240824,-499.04,0.00016438,2]
[366105568,1750066240834,-490.0,0.00016438,2]
[366105569,1750066240844,-490.0,0.00016438,2]
[366105570,1750066240854,-490.0,0.00016438,2]
[366105571,1750066240864,-490.0,0.00016438,2]
[366105572,1750066240874,-490.0,0.00016438,2]
[366105573,1750066240884,-490.0,0.00016438,2]
[366105574,1750066240894,-500.0,0.00016438,2]
[366105575,1750066240904,-490.0,0.00016438,2]
[366105576,1750066240914,-490.0,0.00016438,2]